Cogmind - Beta 14 *** ADVENTURER MODE // 2024.11.27 @ 19:47:35 Player: POPESNHOES Result: Core destroyed Performance ------------- Evolutions (0) 0 Regions Visited (4) 800 Robots Destroyed (21) 105 Value Destroyed (630) 630 Prototype IDs (0) 0 Alien Tech Used (0) 0 Bonus (0) 0 TOTAL SCORE: 1535 Bonus ------- None Cogmind --------- Core Integrity 0/250 Matter 216/300 Energy 234/250 System Corruption 0% Temperature Critical (522) Movement Walking (120) Location -9/Mines Parts ------- > --- POWER (1) -------- Ion Engine > --- PROPULSION (2) --- Aluminum Leg Aluminum Leg > --- UTILITY (2) ------ Medium Storage Unit Signal Interpreter > --- WEAPON (2) ------- Beam Cannon Light Assault Rifle > --- INVENTORY (10) --- Light Ion Engine Aluminum Leg Targeting Computer Medium Laser Assault Rifle Datajack Mining Laser Peak State ------------ > --- POWER ------------ Light Nuclear Core > --- PROPULSION ------- Aluminum Leg Aluminum Leg > --- UTILITY ---------- Small Storage Unit Signal Interpreter > --- WEAPON ----------- Medium Laser Beam Cannon > --- INVENTORY -------- Ion Engine Light Ion Engine Aluminum Leg Assault Rifle [Rating: 9] Favorites ----------- Power Ion Engine Engine Ion Engine Power Core Light Nuclear Core Propulsion Aluminum Leg Leg Aluminum Leg Utility Signal Interpreter Storage Small Storage Unit Processor Signal Interpreter Weapon Beam Cannon Energy Gun Medium Laser Energy Cannon Beam Cannon Ballistic Gun Assault Rifle Build | -11 -10 -10 -10 -9 ------- Run | Yrd Mat Min Exi Min Slots Evolved . | . . . . . Power . | . . . . . Propulsion . | . . . . . Utility . | . . . . . Weapon . | . . . . . Parts Attached 22 | 6 4 8 2 2 Power 5 | 1 1 2 1 . Engine 4 | 1 . 2 1 . Core 1 | . 1 . . . Reactor . | . . . . . Propulsion 7 | 2 . 4 . 1 Treads . | . . . . . Leg 7 | 2 . 4 . 1 Wheel . | . . . . . Hover . | . . . . . Flight . | . . . . . Utility 3 | 1 1 . 1 . Device . | . . . . . Storage 2 | 1 . . 1 . Processor 1 | . 1 . . . Hackware . | . . . . . Protection . | . . . . . Artifact . | . . . . . Weapon 7 | 2 2 2 . 1 Energy Gun 1 | 1 . . . . Energy Cannon 3 | . 2 1 . . Ballistic Gun 3 | 1 . 1 . 1 Ballistic Cannon . | . . . . . Launcher . | . . . . . Special Weapon . | . . . . . Impact Weapon . | . . . . . Slashing Weapon . | . . . . . Piercing Weapon . | . . . . . Special Melee Weapon . | . . . . . Unidentified Prototypes . | . . . . . Parts Lost 3 | . . 2 . 1 Power 1 | . . 1 . . Propulsion 1 | . . 1 . . Utility . | . . . . . Weapon 1 | . . . . 1 Highest Loss Streak 2 | . . 2 . 1 To Critical Strikes . | . . . . . Average Slot Usage (%) 99 | . 95 98 100 99 Engine 12 | . 7 12 14 14 Leg 27 | . 28 27 28 28 Storage 14 | . 14 14 14 14 Processor 13 | . 9 14 14 14 Energy Gun 1 | . 11 . . . Energy Cannon 22 | . 14 16 28 27 Ballistic Gun 3 | . 2 11 . . Peak Build Rating 9 | 6 9 9 8 7 Average Rating 6 | 2 7 7 7 6 On Entrance 5 | . 6 9 7 7 Naked Turns . | . . . . . Heaviest Build 21 | 14 16 16 21 21 Greatest Support 20 | 20 20 20 20 20 Greatest Overweight (x) 1 | . . . 1 1 Average Overweight (x) . | . . . . . Largest Inventory Capacity 10 | 8 8 8 10 10 Average Capacity 8 | 5 8 8 9 10 Most Carried 8 | 5 8 8 8 8 Average Carried 6 | 1 4 7 7 7 Final Capacity 10 | 8 8 8 10 10 Final Carried 8 | 1 8 7 7 7 Class Distribution -------------------- 100% | Mutant Dominant Class ---------------- Mutant | -10/Materials Mutant | -10/Mines Mutant | -10/Exiles Mutant | -9/Mines Resources | -11 -10 -10 -10 -9 ----------- Run | Yrd Mat Min Exi Min Matter Collected 448 | 209 84 135 . 20 Remotely . | . . . . . Salvage Created 693 | . 194 347 . 152 Parts 29 | . 6 17 . 6 Haulers Intercepted . | . . . . . Recyclers Shooed . | . . . . . Parts Field Recycled . | . . . . . Retrieved Matter . | . . . . . Parts Self-Destructed . | . . . . . Prevented . | . . . . . Kills | -11 -10 -10 -10 -9 ------- Run | Yrd Mat Min Exi Min Combat Hostiles Destroyed 20 | . 4 12 . 4 Guns 4 | . 1 3 . . Cannons 15 | . 2 9 . 4 Classes Destroyed 3 | . 2 1 . . Watcher 1 | . 1 . . . Swarmer 6 | . . 6 . . Grunt 14 | . 4 6 . 4 Best Kill Streak 5 | . 3 5 . 4 Combat Bots Only 5 | . 3 5 . 4 Max Kills in Single Turn 1 | . 1 1 . 1 Gunslinging . | . . . . . Exploded . | . . . . . Melee . | . . . . . Uniques/NPCs Destroyed . | . . . . . Combat | -11 -10 -10 -10 -9 -------- Run | Yrd Mat Min Exi Min Hostile Shots Fired 151 | . 23 90 . 38 Missed 32 | . 9 12 . 11 Damage Taken 1083 | . 155 557 . 371 Core 277 | . 13 107 . 157 Absorbed by Shields . | . . . . . Ignored by Resistances 308 | . 45 176 . 87 Core Remaining (%) 100 | 100 . . . . Volleys Fired 71 | 1 26 27 . 17 Largest 2 | 1 2 2 . 2 Hottest 120 | 20 120 120 . 120 Shots Fired 118 | 1 38 52 . 27 Gun 41 | 1 24 15 . 1 Cannon 77 | . 14 37 . 26 Launcher . | . . . . . Special . | . . . . . Kinetic 17 | 1 . 15 . 1 Thermal 101 | . 38 37 . 26 Explosive . | . . . . . Electromagnetic . | . . . . . Robot Hit Streak 18 | . 18 11 . 12 Robot Miss Streak 2 | . 2 2 . 2 Penetration Max . | . . . . . Secondary Targets . | . . . . . Shots Hit Robots 84 | . 28 39 . 17 Core Hits 28 | . 7 16 . 5 Critical Kills . | . . . . . Critical Parts Destroyed . | . . . . . Critical Strikes 1 | . 1 . . . Burn 1 | . 1 . . . Melee Attacks . | . . . . . Impact . | . . . . . Slashing . | . . . . . Piercing . | . . . . . Sneak Attacks . | . . . . . Combat Hostiles . | . . . . . Follow-up Attacks . | . . . . . Damage Inflicted 1376 | . 394 651 . 331 Guns 346 | . 235 111 . . Cannons 1030 | . 159 540 . 331 Explosions . | . . . . . Melee . | . . . . . Ramming . | . . . . . Kinetic 111 | . . 111 . . Thermal 1265 | . 394 540 . 331 Explosive . | . . . . . Electromagnetic . | . . . . . Impact . | . . . . . Slashing . | . . . . . Piercing . | . . . . . Highest Corruption . | . . . . . Average Corruption . | . . . . . Corruption Purged . | . . . . . Corruption Blocked . | . . . . . Overload Shots . | . . . . . Overflow Damage 4 | . . . . 4 Projectiles 4 | . . . . 4 Explosions . | . . . . . Melee . | . . . . . Knockbacks . | . . . . . Impact . | . . . . . Kinetic . | . . . . . Secondary . | . . . . . Self-Inflicted Damage . | . . . . . Shots . | . . . . . Rammed . | . . . . . Targets Rammed . | . . . . . Kicked . | . . . . . Crushed . | . . . . . Highest Temperature 582 | . 309 425 . 582 Average Temperature 196 | . 156 155 . 351 Received Heat Transfer 507 | . 129 144 . 234 Effects 17 | . 4 1 . 12 Shutdowns 2 | . . . . 2 Energy Bleed 3 | . 1 . . 2 Interference 8 | . 3 1 . 4 Matter Decay 1 | . . . . 1 Damage (minor) 1 | . . . . 1 Damage (core) 2 | . . . . 2 Siege Activations . | . . . . . Robots Corrupted . | . . . . . Combat Hostiles . | . . . . . Parts Fried . | . . . . . Impact Corruptions . | . . . . . Robots Melted 1 | . 1 . . . Combat Hostiles 1 | . 1 . . . Parts Melted 11 | . 6 3 . 2 Heat Transferred 2960 | . 1110 1147 . 703 Parts Sabotaged . | . . . . . Parts Stolen . | . . . . . Parts Stripped . | . . . . . Power Chain Reactions . | . . . . . Alert | -11 -10 -10 -10 -9 ------- Run | Yrd Mat Min Exi Min Peak Influence 267 | . 146 267 . 95 Initial 47 | . . 47 . . Average 98 | . 59 163 . 10 Maximum Alert Level 1 | . . 1 . . Low Security (%) 85 | 100 100 71 . 100 Level 1 14 | . . 28 . . Level 2 . | . . . . . Level 3 . | . . . . . Level 4 . | . . . . . Level 5 . | . . . . . High Security . | . . . . . Max Security . | . . . . . Squads Dispatched . | . . . . . Investigation . | . . . . . Extermination . | . . . . . Reinforcement . | . . . . . Assault . | . . . . . Garrison . | . . . . . Intercept . | . . . . . Searches Triggered . | . . . . . Construction Impeded . | . . . . . Haulers Reinforced . | . . . . . Active Scanning Responses . | . . . . . Cargo Convoy Interrupts . | . . . . . Stealth | -11 -10 -10 -10 -9 --------- Run | Yrd Mat Min Exi Min Distress Signals . | . . . . . Communications Jammed . | . . . . . Distress Signals . | . . . . . Times Spotted 24 | . 7 12 . 5 Peak Tracking Total 5 | . 5 5 . 3 Tactical Retreats . | . . . . . Traps | -11 -10 -10 -10 -9 ------- Run | Yrd Mat Min Exi Min Traps Triggered . | . . . . . Indirectly . | . . . . . Trap Hack Attempts . | . . . . . Triggered . | . . . . . Disarmed . | . . . . . Reprogrammed . | . . . . . Reused . | . . . . . Traps Extracted . | . . . . . Installed . | . . . . . Triggered . | . . . . . Machines | -11 -10 -10 -10 -9 ---------- Run | Yrd Mat Min Exi Min Machines Disabled . | . . . . . Max in Single Turn . | . . . . . Machines Repaired . | . . . . . Machines Dismantled . | . . . . . Machines Sabotaged . | . . . . . Overloaded Fab Kills . | . . . . . Hacking | -11 -10 -10 -10 -9 --------- Run | Yrd Mat Min Exi Min Machines Accessed 5 | . 2 . 3 . Terminals 1 | . 1 . . . Fabricators . | . . . . . Repair Stations . | . . . . . Recycling Units 1 | . 1 . . . Scanalyzers . | . . . . . Garrison Access . | . . . . . Total Hacks 26 | . 6 . 20 . Successful 25 | . 5 . 20 . Failed 1 | . 1 . . . Catastrophic . | . . . . . Database Lockouts . | . . . . . Manual . | . . . . . Terminals 4 | . 4 . . . Fabricators . | . . . . . Repair Stations . | . . . . . Recycling Units 2 | . 2 . . . Scanalyzers . | . . . . . Garrison Access . | . . . . . Terminal Hacks 23 | . 3 . 20 . Record 22 | . 2 . 20 . Zone Layout 1 | . 1 . . . Fabricator Hacks . | . . . . . Repair Station Hacks . | . . . . . Recycling Unit Hacks 2 | . 2 . . . Report Inventory 1 | . 1 . . . Retrieve Components 1 | . 1 . . . Scanalyzer . | . . . . . Garrison Access Hacks . | . . . . . Unauthorized Hacks . | . . . . . Terminals . | . . . . . Fabricators . | . . . . . Repair Stations . | . . . . . Recycling Units . | . . . . . Scanalyzers . | . . . . . Garrison Access . | . . . . . Data Cores Recovered . | . . . . . Used . | . . . . . Hacking Detections 1 | . 1 . . . Full Trace Events . | . . . . . Feedback Events . | . . . . . Feedback Blocked . | . . . . . Robot Schematics Acquired . | . . . . . Robots Built . | . . . . . Authchips . | . . . . . Time . | . . . . . Total Robot Build Rating . | . . . . . Part Schematics Acquired . | . . . . . Parts Built . | . . . . . Authchips . | . . . . . Time . | . . . . . Total Part Build Rating . | . . . . . Parts Repaired . | . . . . . Time . | . . . . . Parts Recycled . | . . . . . Recycled Matter . | . . . . . Retrieved Matter . | . . . . . Retrieved Components 1 | . 1 . . . Parts Scanalyzed . | . . . . . Part Schematics Acquired . | . . . . . Parts Damaged . | . . . . . Bothacking | -11 -10 -10 -10 -9 ------------ Run | Yrd Mat Min Exi Min Used RIF Installer . | . . . . . Robots Hacked . | . . . . . Non-combat . | . . . . . Combat . | . . . . . Robot Hacks Applied . | . . . . . Relay Couplers Released . | . . . . . Fabnet Peak Effective % . | . . . . . Robots Rewired . | . . . . . Allies Hacked . | . . . . . Hacks Repelled . | . . . . . Allies | -11 -10 -10 -10 -9 -------- Run | Yrd Mat Min Exi Min Total Allies . | . . . . . Largest Group . | . . . . . Highest-Rated Group . | . . . . . Highest-Rated Ally . | . . . . . Total Orders . | . . . . . Ally Attacks . | . . . . . Total Damage . | . . . . . Kills . | . . . . . Allies Corrupted . | . . . . . Allies Melted . | . . . . . Intel | -11 -10 -10 -10 -9 ------- Run | Yrd Mat Min Exi Min Robot Analysis Total . | . . . . . Derelict Logs Recovered 2 | . . 2 . . Drone Launches . | . . . . . Drone Recoveries . | . . . . . Exploration | -11 -10 -10 -10 -9 ------------- Run | Yrd Mat Min Exi Min Turns Passed 2245 | 67 236 647 1002 293 Spaces Moved 1324 | 30 133 441 590 130 Core 2 | 2 . . . . Treads . | . . . . . Legs 1322 | 28 133 441 590 130 Wheels . | . . . . . Hover . | . . . . . Flight . | . . . . . Fastest Speed 50 | 50 120 120 120 120 Average Speed 148 | 115 120 120 168 188 Slowest Speed 190 | 120 120 120 190 190 Overloaded Moves . | . . . . . Propulsion Burnouts . | . . . . . Robots Hopped . | . . . . . Cave-ins Triggered . | . . . . . Exploration Rate (%) 46 | 4 31 77 91 29 Regions Visited 4 Branch Regions 3 Pre-discovered Areas . | . . . . . Known Exits Taken 3 | . 1 1 1 . Unknown Exits Taken 1 | 1 . . . . Scrap Searched 3 | . . 2 . 1 Spaces Dug . | . . . . . Terrain Destroyed . | . . . . . Melee . | . . . . . Projectile . | . . . . . AOE . | . . . . . Terrain Rammed . | . . . . . Walls Destroyed . | . . . . . Machines Disabled . | . . . . . Actions | -11 -10 -10 -10 -9 --------- Run | Yrd Mat Min Exi Min Total 1487 | 61 170 507 597 152 Wait 43 | 18 . 25 . . Move 1320 | 29 132 440 589 130 Hop . | . . . . . Pick Up 22 | 7 8 3 2 2 Fast Attach 1 | . . . 1 . Attach 11 | 6 1 3 . 1 Detach . | . . . . . Swap 10 | . 3 5 1 1 Drop 8 | . . 4 3 1 Fire 71 | 1 26 27 . 17 Melee . | . . . . . Ram . | . . . . . Kick . | . . . . . Crush . | . . . . . Escape Stasis . | . . . . . Rewire 1 | . . . 1 . Trap . | . . . . . Miscellaneous . | . . . . . Route ------- -11/Scrapyard -10/Materials -10/Mines (discovered 3 exits: *Mat x2 / *Exi) -10/Exiles (discovered 2 exits: *Min x2) -9/Mines History --------- Turn | Location | Event 42 | -11/Scrapyard | Discovered new exit (range 14) 68 | -11/Scrapyard | Entered Materials 290 | -10/Materials | Discovered new exit (range 6) 295 | -10/Materials | Identified exit to Mines 302 | -10/Materials | Build established: Mutant 304 | -10/Materials | Entered Mines 323 | -10/Mines | Met a Derelict bent on vengeance 538 | -10/Mines | Learned Materials emergency access door positions 594 | -10/Mines | Discovered new exit (range 15) 850 | -10/Mines | Discovered new exit (range 9) 899 | -10/Mines | Identified exit to Materials 946 | -10/Mines | Deemed a non-threat by the Exiles lab entrance 946 | -10/Mines | Discovered new exit (range 5) 950 | -10/Mines | Identified exit to Exiles 951 | -10/Mines | Entered Exiles 952 | -10/Exiles | Identified exit to Mines 1019 | -10/Exiles | Met 8R-AWN 1038 | -10/Exiles | Met EX-HEX 1091 | -10/Exiles | Met EX-DEC 1332 | -10/Exiles | Visited The Gauntlet 1664 | -10/Exiles | Met EX-BIN 1953 | -10/Exiles | Entered Mines 2190 | -9/Mines | Core integrity fell below 50% 2241 | -9/Mines | Core integrity fell below 20% 2247 | -9/Mines | Core destroyed Last Messages --------------- Engine. 02238_ G-34 Mercenary heat spikes uncontrollably. 02238_ K-01 Serf collects debris. 02238_ G-34 Mercenary overheating. 02239_ Overheating: Matter decay (-68). 02239_ Aluminum Leg melted. 02239_ Broken Ion Engine melted. 02239_ G-34 Mercenary destroyed. 02240_ Overheating: System interference. 02240_ Lgt. Assault Rifle temporarily disabled. 02240_ K-01 Serf collects debris. 02240_ R-06 Scavenger collects Aluminum Leg. 02241_ Overheating: Core damaged (-37). 02242_ Power failure, Ion Engine shutdown. 02242_ K-01 Serf collects debris. 02243_ Overheating: System interference. 02243_ Beam Cannon temporarily disabled. 02246_ R-06 Scavenger collects Ion Engine. 02247_ Overheating: Core damaged (-45). Map ----- +----------------------------------------------------+ | ?????????????????????????????????????????????????? | | ?????????????????????????????????????????????????? | | ?????????????????????????????????????????????????? | | ?????????????????????????????????????????????????? | | ?????????????????????????????????????????????????? | | ?????????????????????????????????????????????????? | | ?????????????????????????????????????????????????? | | ?????????????????????????????????????????????????? | | ?????????????????????????????????????????????????? | | ?????????????????????????????????????????????????? | | ?????????????????????????????????????????????????? | | ?????????????????????????????????????????????????? | | ?????????????????????????????????????????????????? | | ?????????????????????????????????????????????????? | | ?????????????????????????????????????????????????? | | ?????????????????????##???????????###????????????? | | ????????????????????## #????????? ##???????????? | | ????????????????????? #??????? #???????????? | | ?????????????????????? ##????# #???????????? | | ?????????????????????? ##### #????????????? | | ??????????????????????? #?????????????? | | ?????????????????#?????# #?????????????? | | ?????????????????# ????# #??????????????? | | ??????????????# ## ##### t #??????????????? | | ??????????????# g% * k % k #??????????????? | | ??????????????# [% k @ #??????????????? | | ?????????????????#### r ##??????????????? | | ????????????????????# % ####???????????????? | | ????????????????????## = ##??????????????????? | | ?????????????????????# ##???????????????????? | | ?????????????????????## ##????????????????????? | | ??????????????????????## ##?????????????????????? | | ???????????????????????# ##??????????????????????? | | ##?????????????????????# #????????????????#??????? | | ###???????????????????# #??????????????? #??????? | | + ##??????????????????# #??????????????? #??????? | | ##???????########### #?????????????? #??????? | | # #???????# u #?????????????? #??????? | | ## ##??????# #### #####??????????#### #??????? | | # #??????# #??# #?????????????## #??????? | | |#??????# #### ##???????????## #??????? | | !% #??????# ##??????????# ####???? | | # ##?????## #??????????# #?? | | ## ##?????## #??????????# ## ##???? | | ?# #?????## ##?????????## ##?????????? | | ?# #????## ##?????????# #??????????? | | ?# ###### ## #?????????# #??????????? | | ?# #### ########### #??????????? | | ?# #?## #??????????? | | ?### ##### ##?# #??????????? | +----------------------------------------------------+ Best States ------------- Heat Dissipation 25 Energy Generation 14 Energy Capacity 250 Matter Stores 300 Matter Capacity 300 Sight Range 16 Terrain Scan Density 10 Resistance: KI 20 Resistance: TH 20 Resistance: EX 20 Resistance: EM 20 Resistance: I 20 Resistance: S 20 Resistance: P 20 Evasion (%) 55 Offensive Hacking 10 Item Schematics ----------------- None Robot Schematics ------------------ None Fabricated ------------ Nothing Alien Tech Used ----------------- None Achievements -------------- None Challenges ------------ None Game ------ Seed SiegeMediumDeflector Manual? 0 Play Time 00:19:26 Cumulative 25.2 hours Start 2024.11.27 @ 19:29:08 End 2024.11.27 @ 19:47:35 Sessions 1 Manual Loads 0 Difficulty Adventurer Special Mode None Game No. 38 Rogue 0 Adventurer 38 Explorer 0 Win Type - Total 0 Types 0/0/0/0/0/0/0/0/0 Lore% 11 Gallery% 18 Achievement% 18 Wizard Run 0 Options --------- Layout 1 ASCII 0 Keyboard 0 Movement Mouse Keybinds 0 Fullscreen 1 Font 24/Smallcaps Map View 50x35 Zoom Use 0% Tactical HUD 1 Map Filters NONE Filters NONE Steam 1 RUN: 1811d54f-d1e4-49ed-8916-68616f624797